fUSD/lending_fUSD_20260527
["ID","MTS","AMOUNT","RATE_DAILY","PERIOD"]
[423137148,1779882642000,-500.0,0.00036299,30]
[423137149,1779882642000,-500.0,0.00036299,30]
[423137153,1779882642000,-500.0,0.00036299,30]
[423137154,1779882642000,-500.0,0.00036299,30]
[423137152,1779882642000,-500.0,0.00036299,30]
[423137151,1779882642000,-500.0,0.00036299,30]
[423137163,1779882642000,-15452.91023241,0.000363,5]
[423137156,1779882642000,-500.0,0.00036299,30]
[423137159,1779882642000,-500.0,0.00036299,30]
[423137161,1779882642000,-500.0,0.00036299,30]
[423137164,1779882642000,-209423.28860163,0.000363,2]
[423137162,1779882642000,-500.0,0.00036299,2]
[423137160,1779882642000,-500.0,0.00036299,30]
[423137165,1779882642000,-527.62572404,0.00035499,2]
[423137166,1779882642000,-803.3000653,0.000363,2]
[423137155,1779882642000,-500.0,0.00036299,30]
[423137178,1779882643000,-591.69041286,0.00035499,2]
[423137177,1779882643000,-55.3791325,0.00035499,2]
[423137176,1779882643000,-865.6208675,0.00035499,2]
[423137210,1779882646000,-303.25075268,0.00035499,2]
[423137213,1779882646000,-5953.69,0.000363,2]
[423137212,1779882646000,-8473.79625479,0.000363,2]
[423137211,1779882646000,-300.09384644,0.00035499,2]
[423137214,1779882647000,-497.24609941,0.000363,2]
[423137222,1779882715000,3186.84,0.00024174,2]
[423137223,1779882716000,3186.84,0.00025786,2]
[423137224,1779882733000,514.0,0.00027997,2]
[423137225,1779882744000,253.39740127,0.00030997,2]
[423137226,1779882775000,435.44,0.00030997,7]
[423137227,1779882809000,-200.0,0.00031097,15]
[423137228,1779882834000,1912.1,0.00024174,2]
[423137229,1779882835000,511.39259873,0.00025786,2]
[423137230,1779882835000,1400.70740127,0.00025786,2]
[423137231,1779882842000,5000.01,0.0003099,15]
[423137233,1779882842000,1057.45883267,0.0003099,15]
[423137232,1779882842000,5000.01,0.0003099,15]
[423137234,1779882863000,-295.72720341,0.00031297,15]
[423137235,1779882902000,3942.55116733,0.000309,120]
[423137236,1779882902000,1057.44883267,0.000309,120]
[423137237,1779882906000,1000.0,0.00030137,10]
[423137238,1779882907000,704.0,0.00030137,10]
[423137240,1779882912000,2762.43893268,0.000309,120]
[423137239,1779882912000,2238.56116733,0.000309,120]
[423137247,1779882976000,363.76,0.00030997,7]
[423137249,1779883018000,1147.26,0.00024174,2]
[423137251,1779883019000,420.70893268,0.00025786,2]
[423137250,1779883019000,726.55106732,0.00025786,2]
[423137252,1779883079000,301.79,0.00029408,7]
[423137253,1779883080000,301.79,0.00030449,7]
[423137254,1779883093000,514.0,0.00027997,2]
[423137264,1779883335000,151.58,0.00020193,2]
[423137263,1779883335000,151.58,0.00018357,2]
[423137262,1779883335000,151.58,0.00016522,2]
[423137268,1779883336000,151.58,0.00027536,2]
[423137267,1779883336000,151.58,0.000257,2]
[423137266,1779883336000,151.58,0.00023864,2]
[423137265,1779883336000,151.58,0.00022029,2]
[423137269,1779883337000,151.58,0.00029372,2]
[423137273,1779883374000,688.36,0.00024174,2]
[423137275,1779883375000,688.36,0.00025786,2]
[423137276,1779883478000,363.22,0.000173,2]
[423137286,1779883654000,-160.7504,0.000319,2]
[423137277,1779883654000,-151.58,0.00031207,2]
[423137279,1779883654000,-193.0,0.00031252,120]
[423137281,1779883654000,-178.04024228,0.00031327,2]
[423137278,1779883654000,-250.0,0.0003123,2]
[423137284,1779883654000,-150.0,0.00031572,2]
[423137283,1779883654000,-280.20867475,0.00031489,120]
[423137285,1779883654000,-150.0,0.00031884,2]
[423137287,1779883654000,-500.01684335,0.00031999,3]
[423137282,1779883654000,-164.32,0.00031358,30]
[423137280,1779883654000,-335.43209493,0.00031315,2]
[423137288,1779883703000,250.0,0.00014,2]
[423137289,1779883721000,201.76592071,0.0003086,15]
[423137290,1779883723000,525.0,0.00027997,2]
[423137291,1779883730000,379.3,0.00024174,2]
[423137292,1779883731000,379.3,0.00025786,2]
[423137295,1779883799000,-150.0,0.00031297,7]
[423137294,1779883799000,-200.0,0.00030999,8]
[423137296,1779883800000,168.02,0.00016712,2]
[423137297,1779883800000,150.0,0.00031612,2]
[423137298,1779883822000,228.28,0.00024174,2]
[423137299,1779883823000,228.28,0.00025786,2]
[423137328,1779883834000,-150.0,0.00032573,7]
[423137338,1779883834000,-1852.42,0.00032991,2]
[423137339,1779883834000,-192.78446307,0.00033,120]
[423137340,1779883834000,-686.98065677,0.00033,120]
[423137342,1779883834000,-500.0,0.00033021,2]
[423137346,1779883834000,-689.28,0.00033051,2]
[423137343,1779883834000,-366.16,0.00033035,2]
[423137345,1779883834000,-150.0,0.00033051,2]
[423137344,1779883834000,-151.58,0.00033043,2]
[423137326,1779883834000,-150.0,0.00032573,7]
[423137302,1779883834000,-150.0,0.00031925,2]
[423137349,1779883834000,-198.0,0.00033177,2]
[423137347,1779883834000,-1749.97,0.00033089,2]
[423137348,1779883834000,-2000.0,0.00033133,120]
[423137351,1779883834000,-5000.0,0.00033215,2]
[423137350,1779883834000,-164.11,0.00033209,2]
[423137352,1779883834000,-155.11,0.00033273,120]
[423137355,1779883834000,-150.0,0.00033779,7]
[423137353,1779883834000,-926.737,0.0003336,35]
[423137358,1779883834000,-155.94,0.00033961,30]
[423137341,1779883834000,-197.10911148,0.00033,120]
[423137356,1779883834000,-192.78446307,0.000339,120]
[423137323,1779883834000,-150.0,0.00032573,7]
[423137336,1779883834000,-150.0,0.00032864,2]
[423137303,1779883834000,-1600.0,0.00031999,3]
[423137304,1779883834000,-250.0,0.00032,2]
[423137306,1779883834000,-167.83851798,0.00032,120]
[423137305,1779883834000,-192.78446307,0.00032,120]
[423137307,1779883834000,-686.98065677,0.00032,120]
[423137311,1779883834000,-157.5,0.00032171,30]
[423137308,1779883834000,-197.10911148,0.00032,120]
[423137309,1779883834000,-197.10911148,0.00032,120]
[423137310,1779883834000,-161.75,0.00032077,30]
[423137324,1779883834000,-150.0,0.00032573,7]
[423137316,1779883834000,-400.0,0.00032294,3]
[423137313,1779883834000,-164.02,0.00032235,30]
[423137314,1779883834000,-150.0,0.00032238,2]
[423137317,1779883834000,-150.0,0.00032551,2]
[423137330,1779883834000,-150.0,0.00032573,7]
[423137334,1779883834000,-1213.86620558,0.00032637,2]
[423137319,1779883834000,-300.0,0.00032572,3]
[423137332,1779883834000,-150.0,0.00032573,7]
[423137321,1779883834000,-183.0,0.00032572,3]
[423137322,1779883834000,-150.0,0.00032573,7]
[423137312,1779883834000,-164.02,0.00032174,30]
[423137354,1779883834000,-798.35,0.00033448,2]
[423137373,1779883834000,-2207.57,0.00034716,10]
[423137362,1779883834000,-500.0,0.00034356,2]
[423137387,1779883834000,-500.0,0.00034725,7]
[423137382,1779883834000,-500.0,0.00034725,7]
[423137388,1779883834000,-500.0,0.00034725,7]
[423137390,1779883834000,-500.0,0.00034725,2]
[423137389,1779883834000,-500.0,0.00034725,2]
[423137392,1779883834000,-500.0,0.00034725,2]
[423137393,1779883834000,-450.06404031,0.00034725,7]
[423137391,1779883834000,-500.0,0.00034725,7]
[423137394,1779883834000,-500.0,0.00034725,2]
[423137386,1779883834000,-500.0,0.00034725,2]
[423137398,1779883834000,-500.0,0.00034725,7]
[423137397,1779883834000,-500.0,0.00034725,2]
[423137399,1779883834000,-500.0,0.00034725,2]
[423137400,1779883834000,-500.0,0.00034725,7]
[423137402,1779883834000,-500.0,0.00034725,7]
[423137403,1779883834000,-500.0,0.00034725,2]
[423137401,1779883834000,-500.0,0.00034725,2]
[423137405,1779883834000,-500.0,0.00034725,2]
[423137404,1779883834000,-500.0,0.00034725,7]
[423137357,1779883834000,-686.98065677,0.000339,120]
[423137395,1779883834000,-500.0,0.00034725,7]
[423137384,1779883834000,-500.0,0.00034725,7]
[423137396,1779883834000,-500.0,0.00034725,2]
[423137383,1779883834000,-500.0,0.00034725,2]
[423137360,1779883834000,-807.84,0.00034355,2]
[423137385,1779883834000,-500.0,0.00034725,2]
[423137359,1779883834000,-166.63,0.0003412,2]
[423137361,1779883834000,-10492.2,0.00034356,2]
[423137363,1779883834000,-150.0,0.00034382,7]
[423137366,1779883834000,-1291.05,0.00034452,2]
[423137364,1779883834000,-150.0,0.00034382,7]
[423137367,1779883834000,-1669.0,0.00034559,3]
[423137369,1779883834000,-500.0,0.0003463,2]
[423137365,1779883834000,-228.58,0.0003441,120]
[423137371,1779883834000,-4577.63,0.00034716,10]
[423137372,1779883834000,-3814.69,0.00034716,10]
[423137368,1779883834000,-163.81,0.00034623,2]
[423137370,1779883834000,-164.32,0.00034659,30]
[423137381,1779883834000,-188.81282791,0.00034725,2]
[423137376,1779883834000,-500.0,0.00034725,2]
[423137375,1779883834000,-200.0,0.00034723,3]
[423137378,1779883834000,-500.0,0.00034725,2]
[423137377,1779883834000,-500.0,0.00034725,7]
[423137380,1779883834000,-500.0,0.00034725,7]
[423137374,1779883834000,-1839.64,0.00034716,10]
[423137379,1779883834000,-500.0,0.00034725,2]
[423137431,1779883835000,-500.0,0.00034726,2]
[423137441,1779883835000,-984.0,0.00034726,7]
[423137443,1779883835000,-984.0,0.00034726,7]
[423137439,1779883835000,-984.0,0.00034726,7]
[423137430,1779883835000,-500.0,0.00034726,2]
[423137445,1779883835000,-984.0,0.00034726,7]
[423137437,1779883835000,-984.0,0.00034726,7]
[423137438,1779883835000,-984.0,0.00034726,7]
[423137442,1779883835000,-984.0,0.00034726,7]
[423137440,1779883835000,-984.0,0.00034726,7]
[423137444,1779883835000,-984.0,0.00034726,7]
[423137456,1779883835000,-984.0,0.00034726,7]
[423137447,1779883835000,-984.0,0.00034726,7]
[423137452,1779883835000,-984.0,0.00034726,7]
[423137449,1779883835000,-984.0,0.00034726,7]
[423137451,1779883835000,-984.0,0.00034726,7]
[423137450,1779883835000,-984.0,0.00034726,7]
[423137455,1779883835000,-984.0,0.00034726,7]
[423137448,1779883835000,-984.0,0.00034726,7]
[423137453,1779883835000,-984.0,0.00034726,7]
[423137454,1779883835000,-984.0,0.00034726,7]
[423137457,1779883835000,-990.07549388,0.00034726,7]
[423137459,1779883835000,-2086.98,0.00034795,10]
[423137432,1779883835000,-500.0,0.00034726,2]
[423137446,1779883835000,-984.0,0.00034726,7]
[423137428,1779883835000,-500.0,0.00034726,2]
[423137408,1779883835000,-500.0,0.00034725,2]
[423137429,1779883835000,-500.0,0.00034726,2]
[423137412,1779883835000,-500.0,0.00034725,7]
[423137409,1779883835000,-500.0,0.00034725,7]
[423137411,1779883835000,-500.0,0.00034725,7]
[423137410,1779883835000,-500.0,0.00034725,2]
[423137458,1779883835000,-2504.37,0.00034795,10]
[423137406,1779883835000,-500.0,0.00034725,7]
[423137407,1779883835000,-500.0,0.00034725,7]
[423137413,1779883835000,-500.0,0.00034725,7]
[423137418,1779883835000,-500.0,0.00034725,7]
[423137420,1779883835000,-500.0,0.00034725,7]
[423137419,1779883835000,-500.0,0.00034725,7]
[423137416,1779883835000,-500.0,0.00034725,7]
[423137423,1779883835000,-500.0,0.00034726,2]
[423137424,1779883835000,-500.0,0.00034726,2]
[423137415,1779883835000,-500.0,0.00034725,7]
[423137421,1779883835000,-500.0,0.00034725,7]
[423137417,1779883835000,-500.0,0.00034725,7]
[423137422,1779883835000,-500.0,0.00034725,7]
[423137414,1779883835000,-500.0,0.00034725,7]
[423137427,1779883835000,-500.0,0.00034726,2]
[423137425,1779883835000,-500.0,0.00034726,2]
[423137435,1779883835000,-984.0,0.00034726,7]
[423137433,1779883835000,-591.06253547,0.00034726,2]
[423137426,1779883835000,-500.0,0.00034726,2]
[423137434,1779883835000,-984.0,0.00034726,7]
[423137436,1779883835000,-984.0,0.00034726,7]
[423137460,1779883835000,-500.0,0.00034816,10]
[423137476,1779883835000,-318.007063,0.00034822,120]
[423137462,1779883835000,-500.0,0.00034816,120]
[423137492,1779883835000,-1812.62102166,0.00035067,7]
[423137493,1779883835000,-1576.63260203,0.00035072,2]
[423137491,1779883835000,-179.18798,0.00035011,120]
[423137461,1779883835000,-500.0,0.00034816,10]
[423137496,1779883835000,-944.48,0.0003509,2]
[423137501,1779883835000,-300.0,0.00035099,10]
[423137499,1779883835000,-944.48,0.0003509,2]
[423137498,1779883835000,-944.48,0.0003509,2]
[423137497,1779883835000,-944.48,0.0003509,2]
[423137503,1779883835000,-300.0,0.00035099,10]
[423137502,1779883835000,-300.0,0.00035099,10]
[423137505,1779883835000,-500.0,0.00035099,30]
[423137504,1779883835000,-500.0,0.00035099,30]
[423137507,1779883835000,-500.0,0.00035099,30]
[423137509,1779883835000,-160.77057969,0.00035099,30]
[423137506,1779883835000,-500.0,0.00035099,30]
[423137512,1779883835000,-170.18509691,0.00035099,7]
[423137511,1779883835000,-500.0,0.00035099,30]
[423137508,1779883835000,-339.22942031,0.00035099,30]
[423137510,1779883835000,-500.0,0.00035099,30]
[423137513,1779883835000,-500.0,0.00035099,7]
[423137516,1779883835000,-887.0,0.000351,5]
[423137515,1779883835000,-267.29875249,0.00035099,7]
[423137514,1779883835000,-444.05941275,0.00035099,7]
[423137517,1779883835000,-3306.48716333,0.000351,5]
[423137500,1779883835000,-261.31631874,0.0003509,2]
[423137495,1779883835000,-944.48,0.0003509,2]
[423137494,1779883835000,-20230.67460845,0.00035072,2]
[423137488,1779883835000,-886.25900679,0.00035,2]
[423137463,1779883835000,-500.0,0.00034816,10]
[423137464,1779883835000,-150.0,0.00034816,10]
[423137466,1779883835000,-500.0,0.00034816,120]
[423137465,1779883835000,-500.0,0.00034816,10]
[423137467,1779883835000,-532.15488729,0.00034816,10]
[423137468,1779883835000,-500.0,0.00034816,10]
[423137469,1779883835000,-500.0,0.00034816,120]
[423137487,1779883835000,-27216.8675,0.00035,2]
[423137472,1779883835000,-500.0,0.00034816,10]
[423137471,1779883835000,-158.10865426,0.00034816,10]
[423137475,1779883835000,-541.74304789,0.00034816,10]
[423137478,1779883835000,-163.57297,0.00034822,21]
[423137470,1779883835000,-150.0,0.00034816,10]
[423137473,1779883835000,-500.0,0.00034816,10]
[423137474,1779883835000,-500.0,0.00034816,10]
[423137485,1779883835000,-1227.5,0.00035,7]
[423137484,1779883835000,-4370.74904221,0.00035,7]
[423137490,1779883835000,-339.33038545,0.00035,2]
[423137482,1779883835000,-150.0,0.00034985,7]
[423137486,1779883835000,-686.98065677,0.00035,120]
[423137480,1779883835000,-500.0,0.00034904,2]
[423137489,1779883835000,-4113.74099321,0.00035,2]
[423137481,1779883835000,-358.37596,0.00034969,120]
[423137477,1779883835000,-318.007064,0.00034822,21]
[423137479,1779883835000,-347.443553,0.00034822,120]
[423137483,1779883835000,-1000.0,0.00034999,2]
[423137518,1779883836000,-1000.28149329,0.000351,5]
[423137522,1779883837000,151.0,0.000131,2]
[423137524,1779883837000,-150.0,0.00032119,30]
[423137523,1779883837000,-161.76,0.00032033,30]
[423137525,1779883837000,-170.16,0.00032122,30]
[423137526,1779883837000,-761.37749387,0.000351,5]
[423137530,1779883838000,-238.59354025,0.00034715,10]
[423137527,1779883838000,-811.55197263,0.00034715,10]
[423137528,1779883838000,-348.96420054,0.00034715,10]
[423137529,1779883838000,-340.04028658,0.00034715,10]
[423137531,1779883838000,-5306.47838708,0.000351,5]
[423137537,1779883838000,-3748.95612692,0.000351,2]
[423137532,1779883838000,-3205.70049164,0.000351,5]
[423137535,1779883838000,-4497.61015394,0.000351,2]
[423137538,1779883838000,-34948.41570532,0.000351,2]
[423137533,1779883838000,-466.47680614,0.000351,5]
[423137534,1779883838000,-1406.10839706,0.000351,5]
[423137536,1779883838000,-31480.09347182,0.000351,2]
[423137544,1779883840000,-344547.49583334,0.000351,2]
[423137543,1779883840000,-1364.16537526,0.000351,2]
[423137542,1779883840000,-1168.76264994,0.000351,2]
[423137557,1779883842000,-236.53093378,0.00032,120]
[423137558,1779883842000,-236.53093378,0.00033,120]
[423137562,1779883842000,-961.0,0.00035,2]
[423137561,1779883842000,-382.98179456,0.00035,2]
[423137560,1779883842000,-209.59280134,0.000339,120]
[423137559,1779883842000,-26.93813244,0.000339,120]
[423137564,1779883843000,-236.53093378,0.00035,120]
[423137563,1779883843000,-574.98559036,0.00035,2]
[423137565,1779883843000,-151.45282559,0.000351,2]
[423137568,1779883843000,-4593.71028193,0.000351,2]
[423137567,1779883843000,-662.76,0.000351,2]
[423137569,1779883843000,-628.28861067,0.000351,2]
[423137566,1779883843000,-18718.45442799,0.000351,2]
[423137570,1779883843000,-7510.30193521,0.000351,2]
[423137580,1779883846000,-476.63,0.00034792,2]
[423137586,1779883846000,-565.91203727,0.000351,2]
[423137584,1779883846000,-1502.0,0.000351,2]
[423137585,1779883846000,-592.40075735,0.000351,2]
[423137582,1779883846000,-256.40409152,0.000351,2]
[423137583,1779883846000,-11014.50445949,0.000351,2]
[423137581,1779883846000,-8267.42032644,0.000351,2]
[423137579,1779883846000,-476.63,0.00034222,2]
[423137589,1779884033000,1045.6,0.00024174,2]
[423137590,1779884034000,1045.6,0.00025786,2]
[423137591,1779884053000,526.0,0.00027997,2]
[423137592,1779884190000,725.97,0.0001663,2]
[423137593,1779884190000,725.97,0.00017505,2]
[423137594,1779884190000,725.97,0.0001838,2]
[423137595,1779884190000,725.97,0.00019256,2]
[423137596,1779884190000,725.97,0.00020131,2]
[423137600,1779884191000,725.97,0.00023632,2]
[423137599,1779884191000,725.97,0.00022757,2]
[423137598,1779884191000,725.97,0.00021881,2]
[423137597,1779884191000,725.97,0.00021006,2]
[423137601,1779884191000,725.97,0.00024507,2]
[423137607,1779884192000,725.97,0.00028884,2]
[423137606,1779884192000,725.97,0.00028008,2]
[423137604,1779884192000,283.23,0.00026258,2]
[423137603,1779884192000,442.74,0.00026258,2]
[423137602,1779884192000,725.97,0.00025382,2]
[423137605,1779884192000,725.97,0.00027133,2]
[423137609,1779884193000,725.97,0.00030634,2]
[423137608,1779884193000,725.97,0.00029759,2]
[423137613,1779884487000,969.69792251,0.00014,2]
[423137614,1779884541000,1566.06208286,0.00026,10]
[423137620,1779884684000,-163.52,0.00031509,2]
[423137621,1779884694000,127.54016944,0.00024174,2]
[423137622,1779884694000,499.82983056,0.00024174,2]
[423137624,1779884695000,612.07109669,0.00025786,2]
[423137623,1779884695000,15.29890331,0.00025786,2]
[423137635,1779884754000,-500.0,0.00032493,2]
[423137625,1779884754000,-725.97,0.00031509,2]
[423137626,1779884754000,-150.0,0.00031824,2]
[423137627,1779884754000,-320.3653,0.00031899,2]
[423137629,1779884754000,-457.64775248,0.00032,120]
[423137630,1779884754000,-202.18472587,0.00032,120]
[423137631,1779884754000,-150.0,0.00032139,2]
[423137633,1779884754000,-150.0,0.00032454,2]
[423137632,1779884754000,-725.97,0.00032385,2]
[423137636,1779884754000,-208.97895572,0.00032527,2]
[423137634,1779884754000,-165.41,0.00032486,2]
[423137638,1779884754000,-328.78,0.00032692,2]
[423137628,1779884754000,-192.78446307,0.00032,120]
[423137639,1779884754000,-320.0,0.0003273,3]
[423137640,1779884754000,-1600.0,0.0003273,3]
[423137641,1779884754000,-9421.0,0.00032731,2]
[423137642,1779884754000,-456.27400637,0.00032739,2]
[423137643,1779884754000,-185.0,0.00032751,2]
[423137644,1779884754000,-150.0,0.00032769,2]
[423137647,1779884754000,-2060.45,0.00032845,2]
[423137645,1779884754000,-253.41,0.0003278,2]
[423137649,1779884754000,-510.3,0.00032891,2]
[423137646,1779884754000,-11753.0,0.00032797,2]
[423137648,1779884754000,-5000.0,0.00032872,2]
[423137650,1779884754000,-862.49494296,0.00032923,2]
[423137637,1779884754000,-150.0,0.00032565,2]
[423137652,1779884798000,-337.5666502,0.00032923,2]
[423137651,1779884798000,-202.18472587,0.00032,120]
[423137653,1779884824000,89.45535299,0.0003137,30]
[423137654,1779884838000,-77.20464701,0.0003137,30]
[423137655,1779884838000,-601.50911938,0.00032,120]
[423137659,1779885031000,-2500.0,0.00032803,120]
[423137661,1779885031000,-187.21,0.00032891,120]
[423137665,1779885031000,-400.0,0.00032941,2]
[423137667,1779885031000,-150.0,0.00032942,7]
[423137663,1779885031000,-3215.51840684,0.00032923,2]
[423137660,1779885031000,-256.72,0.00032888,2]
[423137666,1779885031000,-1600.0,0.00032941,3]
[423137668,1779885031000,-150.0,0.00032942,7]
[423137662,1779885031000,-403.92,0.00032914,2]
[423137657,1779885031000,-655.06504827,0.00032,120]
[423137658,1779885031000,-182.86,0.00032232,120]
[423137670,1779885031000,-150.0,0.00032942,7]
[423137675,1779885031000,-150.0,0.00032942,7]
[423137669,1779885031000,-151.94711238,0.00032942,7]
[423137671,1779885031000,-150.0,0.00032942,7]
[423137672,1779885031000,-150.64808401,0.00032942,7]
[423137673,1779885031000,-150.0,0.00032942,7]
[423137674,1779885031000,-150.0,0.00032942,7]
[423137677,1779885031000,-200.0,0.00032958,2]
[423137678,1779885031000,-4443.10028772,0.0003299,2]
[423137679,1779885031000,-18303.81932559,0.0003299,2]
[423137676,1779885031000,-150.0,0.00032942,7]
[423137664,1779885031000,-240.31,0.00032935,2]
[423137685,1779885032000,-915.38,0.00033048,34]
[423137692,1779885032000,-725.97,0.0003326,2]
[423137689,1779885032000,-150.0,0.00033078,7]
[423137690,1779885032000,-150.0,0.00033214,7]
[423137684,1779885032000,-166.66,0.00033021,30]
[423137688,1779885032000,-92.96117842,0.00033068,2]
[423137680,1779885032000,-1256.57416765,0.00033,120]
[423137683,1779885032000,-213.93849686,0.00033014,2]
[423137691,1779885032000,-405.0,0.00033259,2]
[423137681,1779885032000,-2962.35,0.00033,2]
[423137686,1779885032000,-18372.95,0.00033049,2]
[423137687,1779885032000,-3396.98882158,0.00033068,2]
[423137682,1779885032000,-2000.0,0.0003301,120]
[423137693,1779885032000,-150.0,0.00033275,7]
[423137702,1779885032000,-150.0,0.00033553,7]
[423137696,1779885032000,-519.21117842,0.00033288,2]
[423137694,1779885032000,-1000.0,0.00033287,2]
[423137703,1779885032000,-1453.05,0.00033556,10]
[423137697,1779885032000,-150.0,0.00033349,7]
[423137704,1779885032000,-1210.87,0.00033556,10]
[423137699,1779885032000,-194.04,0.00033393,120]
[423137698,1779885032000,-1003.8693492,0.00033358,2]
[423137701,1779885032000,-150.0,0.00033485,7]
[423137700,1779885032000,-1852.42,0.00033473,2]
[423137705,1779885032000,-8662.7477178,0.00033566,5]
[423137706,1779885032000,-105265.93405802,0.00033566,2]
[423137707,1779885032000,-43555.93086263,0.00033566,2]
[423137708,1779885032000,-33554.83498498,0.00033566,2]
[423137695,1779885032000,-12506.06882158,0.00033288,2]
[423137724,1779885037000,-1009.06,0.00033556,10]
[423137727,1779885037000,-301.94638639,0.00033565,7]
[423137728,1779885037000,-578.01908234,0.00033565,7]
[423137725,1779885037000,-500.0,0.00033565,7]
[423137726,1779885037000,-500.0,0.00033565,7]
[423137738,1779885038000,-500.0,0.00033565,7]
[423137740,1779885038000,-500.0,0.00033565,7]
[423137747,1779885038000,-1296.83231238,0.00033566,2]
[423137736,1779885038000,-500.0,0.00033565,7]
[423137737,1779885038000,-500.0,0.00033565,2]
[423137733,1779885038000,-321.58029536,0.00033565,7]
[423137735,1779885038000,-461.61799494,0.00033565,2]
[423137732,1779885038000,-178.41970464,0.00033565,7]
[423137731,1779885038000,-170.52286453,0.00033565,7]
[423137729,1779885038000,-359.27439701,0.00033565,7]
[423137730,1779885038000,-140.72560299,0.00033565,7]
[423137748,1779885038000,-2666.28575019,0.00033566,2]
[423137734,1779885038000,-38.38200506,0.00033565,2]
[423137739,1779885038000,-392.28275727,0.00033565,2]
[423137742,1779885038000,-500.0,0.00033565,7]
[423137741,1779885038000,-500.0,0.00033565,7]
[423137757,1779885038000,-866.12932493,0.00033566,2]
[423137756,1779885038000,-34948.41570532,0.00033566,2]
[423137754,1779885038000,-31480.09347182,0.00033566,2]
[423137753,1779885038000,-5903.718551,0.00033566,2]
[423137755,1779885038000,-3748.95612692,0.00033566,2]
[423137751,1779885038000,-2184.34232518,0.00033566,2]
[423137752,1779885038000,-466.47680614,0.00033566,2]
[423137749,1779885038000,-1193.48095674,0.00033566,2]
[423137745,1779885038000,-395.00640403,0.00033565,7]
[423137744,1779885038000,-500.0,0.00033565,7]
[423137746,1779885038000,-840580.50051648,0.00033566,2]
[423137743,1779885038000,-500.0,0.00033565,7]
[423137750,1779885038000,-1856.31450221,0.00033566,2]
[423137759,1779885039000,-500.0,0.00033566,2]
[423137760,1779885039000,-1407.52319047,0.00033566,2]
[423137761,1779885040000,-21662.71920909,0.00033566,2]
[423137764,1779885040000,-2196.60000014,0.00033566,2]
[423137762,1779885040000,-77454.99999994,0.00033566,2]
[423137763,1779885040000,-701.11681666,0.00033566,2]
[423137803,1779885043000,-6898.87111839,0.00033735,2]
[423137815,1779885043000,-150.0,0.00034163,7]
[423137816,1779885043000,-150.0,0.00034163,7]
[423137809,1779885043000,-1256.57416765,0.000339,120]
[423137807,1779885043000,-150.0,0.00033858,7]
[423137818,1779885043000,-500.0,0.00034174,120]
[423137810,1779885043000,-500.0,0.000339,120]
[423137808,1779885043000,-150.0,0.00033891,7]
[423137805,1779885043000,-152.0,0.00033765,7]
[423137806,1779885043000,-150.69734918,0.000338,120]
[423137804,1779885043000,-150.0,0.00033756,7]
[423137792,1779885043000,-220767.27484546,0.00033566,2]
[423137800,1779885043000,-1000.0,0.00033733,2]
[423137801,1779885043000,-187.00901046,0.00033735,2]
[423137802,1779885043000,-751.23987115,0.00033735,2]
[423137798,1779885043000,-289.99,0.00033693,120]
[423137797,1779885043000,-150.0,0.00033675,7]